bitfinex/quotes_ETHUSD_20250413
["timestamp","ask_amount","ask_price","bid_price","bid_amount"]
[1744584472889,4.7299166,1584.1,1583.9,0.13295578]
[1744584473075,0.47299166,1584.0,1583.8,5.05102]
[1744584473278,0.47299166,1584.0,1583.9,0.13295578]
[1744584473511,0.47299166,1584.0,1583.8,10.10198]
[1744584473715,0.47299166,1584.0,1583.9,0.13295578]
[1744584474008,0.47299166,1584.0,1583.8,5.05096]
[1744584474215,0.47299166,1584.0,1583.9,0.13295578]
[1744584474512,0.47299166,1584.0,1583.8,5.05096]
[1744584474714,0.47299166,1584.0,1583.9,0.13295578]
[1744584474913,0.47299166,1584.0,1583.8,10.10194]
[1744584475116,0.47299166,1584.0,1583.9,0.13295578]
[1744584475415,0.47299166,1584.0,1583.7,5.0513]
[1744584475579,3.0,1584.1,1583.8,5.05109]
[1744584475909,4.32731194,1584.1,1583.8,5.18397578]
[1744584477116,4.32731194,1584.1,1583.8,5.18395578]
[1744584477316,5.46294313,1584.1,1583.8,10.10202]
[1744584478224,5.46294313,1584.1,1583.8,5.051]
[1744584479019,5.46294313,1584.1,1583.8,5.05099]
[1744584480202,5.46294313,1584.1,1583.9,5.0507]
[1744584480408,5.46294313,1584.1,1583.8,5.05099]
[1744584480601,0.54629431,1584.0,1583.6,5.96774]
[1744584480819,5.59694431,1584.0,1583.9,0.13971312]
[1744584481121,5.59694431,1584.0,1583.7,5.05143]
[1744584481304,5.59694431,1584.0,1583.8,0.1406312]
[1744584481305,8.05103,1583.9,1583.8,0.1406312]
[1744584481504,8.05103,1583.9,1583.6,5.05176]
[1744584481701,0.805103,1583.8,1583.7,0.1406312]
[1744584482529,3.0,1583.9,1583.7,0.1406312]
[1744584482717,3.0,1583.9,1583.6,10.10338]
[1744584483038,3.0,1583.9,1583.7,0.1406312]
[1744584483345,3.0,1583.9,1583.6,5.05162]
[1744584483519,7.031,1583.8,1583.7,0.1406312]
[1744584483922,7.031,1583.8,1583.5,10.10912]
[1744584484120,3.0,1583.7,1583.6,0.1406312]
[1744584484421,8.05176,1583.7,1583.6,0.1406312]
[1744584484819,3.0,1583.7,1583.6,0.1406312]
[1744584485360,7.031,1583.8,1583.7,5.05146]
[1744584485540,10.031,1583.8,1583.7,0.14171638]
[1744584486051,7.031,1583.8,1583.7,5.19317638]
[1744584486217,12.08214,1583.8,1583.7,0.14171638]
[1744584486424,7.7341,1583.8,1583.7,0.14171638]
[1744584486625,7.7341,1583.8,1583.5,5.93085]
[1744584486942,12.78524,1583.8,1583.5,5.93085]
[1744584487111,12.78524,1583.8,1583.6,0.14313572]
[1744584487311,9.329984,1583.7,1583.6,0.14313572]
[1744584487510,10.241884,1583.7,1583.6,0.14313572]
[1744584488861,5.190424,1583.7,1583.6,0.14313572]
[1744584489035,10.032,1583.7,1583.6,0.14313572]
[1744584491154,7.032,1583.7,1583.6,6.06881572]
[1744584491340,7.032,1584.4,1584.2,5.04986]
[1744584491681,4.19705731,1584.5,1584.4,5.04922]
[1744584492017,4.19705731,1584.5,1584.4,6.05506109]
[1744584495173,5.04796,1584.8,1584.4,6.05506109]
[1744584495174,6.42383597,1584.7,1584.4,0.13194109]
[1744584495378,3.0,1584.7,1584.4,5.04921]
[1744584495578,3.804796,1584.7,1584.5,0.12352142]
[1744584495955,8.853116,1584.7,1584.5,0.12352142]
[1744584496156,8.853116,1584.7,1584.3,5.04954]
[1744584496368,8.853116,1584.7,1584.4,0.12352142]
[1744584496684,3.804796,1584.7,1584.4,5.04905]
[1744584496864,7.02,1584.6,1584.5,0.12352142]
[1744584497067,8.1024796,1584.6,1584.5,0.12352142]
[1744584497272,17.0723696,1584.6,1584.5,0.12352142]
[1744584497575,5.04989,1584.2,1583.8,5.96499]
[1744584497766,12.07021,1584.1,1583.8,0.914]
[1744584497964,3.0,1584.0,1583.6,5.96574]
[1744584498180,3.0,1584.0,1583.5,5.05705]
[1744584498181,5.97233,1583.9,1583.5,5.05695]
[1744584498347,0.897233,1583.9,1583.6,5.05177]
[1744584499253,0.897233,1583.9,1583.6,5.05166]
[1744584499480,0.897233,1583.9,1583.6,10.10332]
[1744584499851,8.51416513,1584.0,1583.5,0.005]
[1744584499852,3.0,1584.0,1583.7,5.05142]
[1744584500181,3.0,1584.0,1583.5,5.05679]
[1744584500762,8.05076,1584.0,1583.6,5.05177]
[1744584500963,3.0,1584.0,1583.7,5.05133]
[1744584501775,8.05053,1584.0,1583.6,5.0516]
[1744584501978,0.805053,1583.9,1583.6,0.06314031]
[1744584502183,7.02,1584.1,1583.7,5.05146]
[1744584502390,12.0703,1584.1,1583.8,5.05112]
[1744584502601,1.20703,1584.0,1583.8,5.96512]
[1744584503316,1.20703,1584.0,1583.8,5.96497]
[1744584504001,6.25773,1584.0,1583.6,5.96574]
[1744584504300,6.25773,1584.0,1583.7,5.05137]
[1744584505294,7.02,1584.1,1583.6,0.914]
[1744584505595,7.02,1584.1,1583.9,10.1012]
[1744584505900,3.0,1584.2,1584.0,10.101]
[1744584506102,1.09413,1584.2,1584.1,5.05018]
[1744584506311,59.20794,1584.5,1584.1,10.10036]
[1744584506593,64.25716,1584.5,1584.1,5.05018]
[1744584506782,7.02,1584.4,1584.1,10.10036]
[1744584507103,13.1649596,1584.4,1584.2,5.04979]
[1744584508402,13.1649596,1584.4,1584.2,10.09951]
[1744584508749,7.02,1584.4,1584.3,5.04954]
[1744584508951,54.159,1584.5,1584.3,5.04954]
[1744584509197,61.179,1584.5,1584.3,5.04954]
[1744584509795,61.179,1584.5,1584.2,5.04972]
[1744584510195,61.179,1584.5,1584.1,5.05016]
[1744584510371,11.16724,1584.4,1584.0,5.96435]
[1744584510613,11.16724,1584.4,1584.1,5.05007]
[1744584511595,6.1179,1584.4,1584.1,5.05007]
[1744584511800,61.179,1584.5,1584.3,5.04949]
[1744584512004,61.179,1584.5,1584.4,5.04922]
[1744584512157,54.159,1584.5,1584.4,5.04922]
[1744584512563,54.159,1584.5,1584.3,5.95644]
[1744584512756,5.04987,1584.2,1583.9,5.95779]
[1744584512960,3.504987,1584.2,1583.9,5.95779]
[1744584513161,10.523987,1584.2,1583.9,11.00845]
[1744584513458,10.523987,1584.2,1583.9,5.95766]
[1744584513677,15.573887,1584.2,1583.9,5.95766]
[1744584513863,10.523987,1584.2,1583.9,5.95766]
[1744584514091,10.523987,1584.2,1583.9,5.95765]
[1744584514293,7.019,1584.2,1584.1,5.05018]
[1744584514951,7.019,1584.2,1584.0,5.05036]
[1744584515258,7.019,1584.2,1584.0,5.05034]
[1744584515391,7.019,1584.2,1584.1,5.05018]
[1744584515719,3.0,1584.4,1584.2,5.04956]
[1744584515891,61.178,1584.5,1584.3,5.04937]
[1744584516091,61.178,1584.5,1584.3,10.09877]
[1744584517221,3.0,1584.6,1584.4,5.04922]
[1744584517222,7.019,1584.6,1584.4,5.04922]
[1744584517428,7.019,1584.6,1584.3,5.04937]
[1744584517633,0.7019,1584.5,1584.3,5.04937]
[1744584517925,7.019,1584.6,1584.4,5.0491]
[1744584519725,7.019,1584.6,1584.4,10.09822]
[1744584520791,7.019,1584.6,1584.5,5.95591]
[1744584524941,0.8977,1585.1,1584.5,5.9559]
[1744584525102,54.154,1585.2,1584.9,5.04763]
[1744584525103,7.008,1585.0,1584.9,5.04763]
[1744584525298,54.61880032,1585.2,1585.0,5.04713]
[1744584525511,54.61880032,1585.2,1585.1,5.047]
[1744584525718,0.46480032,1585.2,1585.1,5.047]
[1744584526012,4.19705731,1585.5,1585.2,5.04668]
[1744584526218,4.19705731,1585.5,1585.4,5.04604]
[1744584526748,4.19705731,1585.5,1585.3,5.04621]
[1744584527050,4.19705731,1585.5,1585.2,5.95364]
[1744584527340,9.24246731,1585.6,1585.2,5.95364]
[1744584527548,9.24246731,1585.6,1585.3,0.06307245]
[1744584528125,9.24246731,1585.6,1585.3,5.10943245]
[1744584529944,4.19705731,1585.6,1585.3,10.15563245]
[1744584530127,4.19705731,1585.6,1585.3,11.2618957]
[1744584530541,4.19705731,1585.6,1585.3,6.2155357]
[1744584530755,4.19705731,1585.6,1585.4,5.04602]
[1744584531550,4.19705731,1585.6,1585.3,5.10927245]
[1744584531847,5.04542,1585.6,1585.3,5.10927243]
[1744584532047,5.0451,1585.7,1585.3,5.10927243]
[1744584532247,3.0,1585.7,1585.4,5.04574]
[1744584532566,7.008,1585.8,1585.6,5.914]
[1744584533169,7.008,1585.8,1585.6,10.95923]
[1744584533361,7.008,1585.8,1585.6,5.91383]
[1744584533935,7.008,1585.8,1585.6,10.95906]
[1744584534469,7.008,1585.8,1585.7,5.04509]
[1744584534878,7.008,1585.8,1585.6,5.91383]
[1744584535471,7.008,1585.8,1585.5,5.04569]
[1744584535672,7.8983,1585.8,1585.5,5.04569]
[1744584535873,7.008,1585.8,1585.6,5.04536]
[1744584536670,7.008,1585.8,1585.5,5.04555]
[1744584536870,7.008,1585.8,1585.5,10.15416282]
[1744584537481,7.008,1585.8,1585.5,10.10416282]
[1744584537875,7.008,1585.8,1585.5,5.05861282]
[1744584538050,7.008,1585.8,1585.5,10.10420282]
[1744584538245,7.008,1585.8,1585.6,5.0454]
[1744584538562,7.008,1585.8,1585.6,5.04529]
[1744584539365,7.008,1585.8,1585.5,5.04572]
[1744584539671,8.213256,1585.8,1585.5,5.04572]
[1744584539838,8.213256,1585.8,1585.5,10.09127]
[1744584540379,8.213256,1585.8,1585.5,5.04555]
[1744584540587,5.04526,1585.7,1585.3,5.04627]
[1744584540758,5.04548,1585.6,1585.3,5.04627]
[1744584540962,0.504548,1585.5,1585.2,10.96178]
[1744584541159,5.04548,1585.6,1585.3,5.04634]
[1744584541588,5.93543,1585.7,1585.5,5.04559]
[1744584541589,3.0,1585.7,1585.5,5.04559]
[1744584541887,10.004,1585.7,1585.5,5.04559]
[1744584543456,7.004,1585.7,1585.5,5.04559]
[1744584543659,7.004,1585.7,1585.6,5.0274165]
[1744584544377,7.004,1585.7,1585.5,5.94869]
[1744584544899,7.004,1585.7,1585.6,5.0454]
[1744584546431,7.003,1586.0,1585.7,5.04478]
[1744584546581,3.8839,1586.1,1585.8,5.04477]
[1744584546917,3.0,1586.1,1586.0,5.04413]
[1744584547117,73.24412,1586.3,1585.9,0.9031]
[1744584547277,11.1885896,1586.2,1585.9,0.9031]
[1744584547486,5.04427,1586.0,1585.6,5.04529]
[1744584547677,5.04446,1585.9,1585.6,5.04529]
[1744584549313,5.04427,1586.0,1585.6,10.09058]
[1744584549483,11.185811,1586.0,1585.6,5.04529]
[1744584550217,3.8839,1586.1,1585.8,5.04461]
[1744584550396,3.8839,1586.1,1585.8,10.08924]
[1744584550792,3.8839,1586.1,1585.8,5.04461]
[1744584551015,8.92786,1586.1,1585.7,5.04503]
[1744584551325,5.04426,1586.0,1585.6,5.04535]
[1744584551494,5.548886,1585.9,1585.5,0.9031]
[1744584551830,5.92909,1585.7,1585.3,5.04636]
[1744584551986,5.92909,1585.7,1585.3,5.04622]
[1744584552515,0.8839,1585.7,1585.1,0.9031]
[1744584552815,3.0,1585.8,1585.6,5.04527]
[1744584552987,4.593035,1585.8,1585.6,5.04527]
[1744584553189,4.593035,1585.8,1585.4,5.94909]
[1744584553511,4.593035,1585.8,1585.5,10.09126]
[1744584553908,4.593035,1585.8,1585.5,5.0456]
[1744584554382,5.04526,1585.7,1585.3,5.04631]
[1744584554580,11.0544695,1585.7,1585.3,5.04631]
[1744584555331,6.0090895,1585.7,1585.3,5.04631]
[1744584555535,6.0090895,1585.7,1585.3,10.15556122]
[1744584555834,6.0090895,1585.7,1585.3,5.10925122]
[1744584555990,6.0090895,1585.7,1585.3,10.15548122]
[1744584556428,0.9638295,1585.7,1585.4,5.046]
[1744584556727,5.04586,1585.5,1585.1,5.04698]
[1744584556887,0.504586,1585.4,1585.1,5.04698]
[1744584557228,0.504586,1585.4,1585.2,5.04663]
[1744584557435,12.03786,1585.5,1585.2,5.04663]
[1744584558838,6.992,1585.5,1585.2,10.09326]
[1744584559287,6.992,1585.5,1585.3,5.04632]
[1744584560455,6.992,1585.5,1585.4,5.04604]
[1744584562247,5.04653,1585.3,1584.9,0.9161]
[1744584562423,5.637553,1585.3,1585.0,5.04718]
[1744584562623,0.591023,1585.3,1585.0,10.15744388]
[1744584562948,5.90976,1585.4,1585.0,10.15744388]
[1744584563316,5.90976,1585.4,1585.0,10.09436]
[1744584564045,10.95598,1585.4,1585.0,5.04718]
[1744584564351,0.8637,1585.4,1585.1,5.04684]
[1744584564850,6.37659824,1585.4,1585.1,5.04684]
[1744584565051,8.21804206,1585.4,1585.1,5.04684]
[1744584565651,8.21804206,1585.4,1585.0,10.09454]
[1744584565814,8.21804206,1585.4,1585.1,5.04694]
[1744584566150,12.03784,1585.5,1585.3,5.0462]
[1744584566151,6.993,1585.5,1585.3,5.0462]
[1744584566348,3.0,1585.7,1585.4,5.04604]
[1744584566756,3.0,1585.7,1585.5,5.04565]
[1744584567121,0.8783,1586.0,1585.7,5.04487]
[1744584567428,6.994,1585.9,1585.7,5.04487]
[1744584567837,6.994,1585.9,1585.7,10.08983]
[1744584568055,6.994,1585.9,1585.7,5.04487]
[1744584569956,0.8783,1585.7,1585.3,0.8359]
[1744584570123,5.04556,1585.6,1585.3,0.8359]
[1744584570420,5.92339,1585.7,1585.3,10.92839]
[1744584570626,3.0,1585.8,1585.3,1.928739]
[1744584570840,3.0,1585.8,1585.5,10.09107]
[1744584571253,3.0,1585.8,1585.5,5.04547]
[1744584571464,3.0,1585.8,1585.4,5.046]
[1744584571668,3.0,1585.8,1585.5,5.04559]
[1744584571967,3.0,1585.8,1585.6,5.0454]
[1744584572169,9.13213,1585.8,1585.4,5.04603]
[1744584572372,5.04524,1585.7,1585.3,5.88212]
[1744584572670,5.04524,1585.7,1585.3,10.92834]
[1744584572967,10.09051,1585.7,1585.3,5.88212]
[1744584573270,5.04524,1585.7,1585.3,5.88212]
[1744584573575,5.04524,1585.7,1585.4,5.04604]
[1744584574541,5.04524,1585.7,1585.3,10.92837]
[1744584574739,5.04416,1586.0,1585.6,5.04522]
[1744584574957,3.0,1585.9,1585.6,5.04522]
[1744584575157,3.0,1585.9,1585.7,5.04506]
[1744584575356,3.0,1585.9,1585.7,5.04495]
[1744584575573,3.0,1585.9,1585.8,5.04477]
[1744584575778,12.08795731,1586.1,1585.8,0.8486]
[1744584575950,12.39885304,1586.1,1585.9,5.04426]
[1744584576166,12.39885304,1586.1,1585.9,10.08871]
[1744584576455,12.39885304,1586.1,1585.9,5.04426]
[1744584576651,11.19005731,1586.1,1585.9,5.04426]
[1744584576897,11.19005731,1586.1,1586.0,5.04413]
[1744584577456,4.19705731,1586.1,1586.0,5.04413]
[1744584577805,4.19705731,1586.1,1586.0,5.95577369]
[1744584578158,5.4351814,1586.6,1586.5,5.89114]
[1744584578664,13.3260814,1586.6,1586.1,0.59557737]
[1744584578888,6.3330814,1586.6,1586.2,5.0433]
[1744584579197,18.3673614,1586.6,1586.2,5.0433]
[1744584579863,5.04299,1586.4,1586.0,5.89272]
[1744584580069,8.04256,1586.5,1586.1,5.0438]
[1744584580300,5.04319,1586.3,1585.9,5.04432]
[1744584580502,7.796256,1586.4,1585.8,0.8486]
[1744584580712,5.04388,1586.1,1585.7,5.04497]
[1744584580915,5.94287,1585.8,1585.2,5.89502]
[1744584581078,5.94287,1585.8,1585.3,5.04625]
[1744584581412,5.04511,1585.7,1585.3,6.140377]
[1744584581571,6.991,1585.6,1585.3,6.140377]
[1744584581761,6.991,1585.6,1585.4,5.04592]
[1744584581965,6.991,1585.6,1585.3,6.140457]
[1744584582276,6.991,1585.6,1585.3,1.094127]
[1744584582595,5.04413,1586.0,1585.6,5.04528]
[1744584582596,3.0,1586.0,1585.6,5.04528]
[1744584582906,8.04414,1586.0,1585.6,5.04528]
[1744584583634,8.04414,1586.0,1585.5,5.04569]
[1744584583635,5.0446,1585.9,1585.5,5.04569]
[1744584583798,5.9425,1585.9,1585.5,5.04569]
[1744584584003,0.8979,1585.9,1585.5,0.504569]
[1744584584196,0.8979,1585.9,1585.6,5.04519]
[1744584584402,3.0,1586.0,1585.7,5.04503]
[1744584585698,7.8889,1586.1,1585.8,5.04472]
[1744584585905,6.991,1586.1,1585.8,5.89335]
[1744584586227,13.238452,1586.1,1585.7,5.04492]
[1744584586604,13.71465373,1586.1,1585.7,5.04492]
[1744584586839,5.94219,1586.0,1585.6,5.04538]
[1744584587438,5.94219,1586.0,1585.5,10.93983]
[1744584587439,5.0446,1585.9,1585.5,10.93983]
[1744584587598,5.94219,1586.0,1585.5,10.93983]
[1744584587599,5.94219,1586.0,1585.6,5.04527]
[1744584588236,5.0445,1585.9,1585.5,5.04554]
[1744584588421,5.04491,1585.8,1585.4,5.04593]
[1744584589543,5.04491,1585.8,1585.4,10.09182]
[1744584589930,5.04491,1585.8,1585.5,5.04572]
[1744584592558,5.04491,1585.8,1585.4,5.04589]
[1744584592872,12.92612,1585.7,1585.3,10.09254]
[1744584593529,12.92612,1585.7,1585.4,5.046]
[1744584593727,0.8979,1585.9,1585.6,5.0454]
[1744584593944,8.94237,1585.9,1585.6,0.51084694]
[1744584594138,13.98707,1585.9,1585.5,5.04567]
[1744584594538,3.8979,1585.9,1585.5,5.04572]
[1744584594743,3.8979,1585.9,1585.6,5.0452]
[1744584594922,3.8979,1585.9,1585.5,5.04568]
[1744584595122,8.9425,1585.9,1585.5,5.04568]
[1744584595670,5.04477,1585.8,1585.5,5.04569]
[1744584596176,5.04477,1585.8,1585.5,6.139706]
[1744584596458,8.9425,1585.9,1585.5,11.185266]
[1744584596663,8.9425,1585.9,1585.5,11.24832906]
[1744584596853,13.98713,1585.9,1585.5,6.139576]
[1744584597861,3.0,1585.9,1585.7,5.04497]
[1744584598221,8.04465,1585.9,1585.5,6.139576]
[1744584598420,8.04465,1585.9,1585.5,11.185186]
[1744584598662,8.04465,1585.9,1585.6,5.04539]
[1744584598847,8.04465,1585.9,1585.6,6.1638866]
[1744584599160,3.0,1585.9,1585.6,6.1637666]
[1744584599371,3.0,1585.9,1585.6,5.04527]
[1744584599661,0.8979,1585.7,1585.4,5.89454]
[1744584599958,0.8979,1585.7,1585.4,10.94048]
[1744584600164,0.8979,1585.7,1585.5,5.0457]
[1744584600670,0.8979,1585.7,1585.5,10.09128]
[1744584600971,0.8979,1585.7,1585.5,11.185268]
[1744584602075,3.8799,1585.9,1585.6,5.0454]
[1744584602373,3.8799,1585.9,1585.7,5.04497]
[1744584603028,0.8799,1585.9,1585.7,5.04497]
[1744584604368,0.8799,1585.9,1585.6,10.15386034]
[1744584604534,0.8799,1585.9,1585.6,11.27864517]
[1744584604732,0.8799,1585.9,1585.6,6.23324517]
[1744584604932,0.8799,1585.9,1585.6,6.17018483]
[1744584605262,0.8799,1585.9,1585.6,6.17003483]
[1744584605468,0.8799,1585.9,1585.6,5.04525]
[1744584605683,6.983,1586.0,1585.5,5.04572]
[1744584605977,6.983,1586.0,1585.8,5.04477]
[1744584606749,12.02728,1586.3,1585.9,5.04445]
[1744584606951,7.8639,1586.3,1586.1,5.04378]
[1744584607153,0.48392893,1586.4,1586.2,5.0435]
[1744584607368,0.48392893,1586.4,1586.3,5.04318]
[1744584608194,7.8639,1586.7,1586.2,5.0435]
[1744584608398,7.8639,1586.7,1586.5,5.04235]
[1744584610389,6.984,1586.7,1586.5,10.0847]
[1744584610688,6.984,1586.7,1586.5,5.04235]
[1744584611069,12.02592,1586.7,1586.4,5.04282]
[1744584611391,5.92264,1586.5,1586.1,5.9389]
[1744584611565,5.04332,1586.3,1585.9,5.93952]
[1744584611765,6.982,1586.3,1586.1,5.04362]
[1744584612083,6.982,1586.3,1586.1,10.08733]
[1744584612691,6.982,1586.3,1586.2,5.0435]
[1744584613359,6.982,1586.3,1586.2,6.052212]
[1744584613693,6.982,1586.6,1586.3,5.04288]
[1744584613988,6.982,1586.6,1586.3,10.08587]
[1744584614594,12.02423,1586.6,1586.2,6.947282]
[1744584614791,12.02423,1586.6,1586.2,6.947172]
[1744584615093,12.02423,1586.6,1586.2,11.990532]
[1744584615391,6.982,1586.6,1586.3,5.04316]
[1744584615787,6.982,1586.6,1586.3,6.3050842]
[1744584615970,6.982,1586.6,1586.4,10.08546]
[1744584616492,11.34467437,1586.7,1586.4,10.08546]
[1744584617094,11.34467437,1586.7,1586.5,5.0425]
[1744584618297,6.982,1586.7,1586.6,5.04222]
[1744584619166,6.982,1586.7,1586.5,5.8973]
[1744584619167,6.982,1586.7,1586.5,10.93974]
[1744584619400,6.982,1586.7,1586.5,12.033714]
[1744584619701,6.982,1586.7,1586.6,5.10524299]
[1744584619861,0.47553688,1586.9,1586.7,5.04176]
[1744584620066,3.0,1586.9,1586.6,5.04218]
[1744584620259,3.0,1586.9,1586.7,5.04175]
[1744584620499,3.0,1586.9,1586.6,5.04205]
[1744584621314,3.0,1586.9,1586.6,10.08413]
[1744584621604,3.0,1586.9,1586.7,5.0419]
[1744584622103,6.974,1587.0,1586.8,5.04148]
[1744584622312,6.974,1587.0,1586.9,5.89607]
[1744584622612,54.57335501,1587.1,1586.9,5.89607]
[1744584622918,54.57335501,1587.1,1587.0,5.04095]
[1744584623211,54.099,1587.1,1587.0,5.04095]
[1744584623396,7.8326,1587.3,1587.1,5.0405]
[1744584625201,6.973,1587.3,1587.1,10.08096]
[1744584625503,6.973,1587.3,1587.1,5.04046]
[1744584626094,12.01304,1587.3,1587.0,5.04095]
[1744584626299,5.90016,1587.2,1586.8,5.04145]
[1744584626601,10.94075,1587.2,1586.8,5.04145]
[1744584626776,1.094075,1587.1,1586.8,5.04145]
[1744584626977,0.8596,1587.2,1586.9,5.04118]
[1744584628216,5.90003,1587.2,1586.8,5.04142]
[1744584628415,10.94055,1587.2,1586.8,5.04142]
[1744584628713,5.90003,1587.2,1586.8,10.08283]
[1744584628909,5.90003,1587.2,1586.9,5.04123]
[1744584629110,7.187333,1587.2,1586.9,5.04123]
[1744584631524,7.187333,1587.2,1587.0,0.27981062]
[1744584631891,2.146903,1587.2,1587.0,0.27981062]
[1744584632109,7.8213,1587.3,1587.0,5.32072062]
[1744584632311,5.04039,1587.2,1587.0,0.27981062]
[1744584632623,10.08093,1587.2,1586.8,5.04158]
[1744584632820,5.04039,1587.2,1586.8,5.04147]
[1744584633041,12.86135,1587.3,1586.9,10.34110273]
[1744584633549,12.86135,1587.3,1586.9,10.40411153]
[1744584633699,6.973,1587.3,1587.1,5.04043]
[1744584633899,9.973,1587.3,1587.2,0.25883959]
[1744584636319,0.52945722,1587.4,1587.2,0.25883959]
[1744584636518,0.52945722,1587.4,1587.2,5.29897959]
[1744584636718,0.52945722,1587.4,1587.2,10.33917959]
[1744584637435,0.05,1587.4,1587.3,5.04]
[1744584637797,0.05,1587.4,1587.3,5.29882013]
[1744584638805,0.05,1587.4,1587.3,0.25882013]
[1744584639198,0.05,1587.4,1587.2,5.04014]
[1744584639398,0.05,1587.4,1587.3,0.25882223]
[1744584639838,7.144025,1587.4,1587.3,0.25882223]
[1744584640227,1.256045,1587.4,1587.1,5.04051]
[1744584640420,0.05,1587.4,1587.1,10.08104]
[1744584640618,0.05,1587.4,1587.2,5.29913538]
[1744584642140,0.05,1587.4,1587.2,5.29899538]
[1744584642341,0.05,1587.4,1587.2,6.14679538]
[1744584642840,0.05,1587.4,1587.3,5.04]
[1744584643200,0.05,1587.4,1587.3,5.2965054]
[1744584643524,0.05,1587.4,1587.3,0.2565054]
[1744584644108,0.05,1587.4,1587.1,10.08101]
[1744584644314,0.05,1587.4,1587.2,0.25361009]
[1744584644741,0.05,1587.4,1587.2,5.29390009]
[1744584645200,0.9368,1587.3,1587.2,0.25361009]
[1744584645659,0.9368,1587.3,1587.1,5.04062]
[1744584645799,0.05,1587.4,1587.2,0.25358715]
[1744584646127,7.02,1587.4,1587.2,0.25358715]
[1744584646326,7.02,1587.4,1587.2,5.29385715]
[1744584646525,0.05,1587.4,1587.3,6.00769825]
[1744584647023,0.05,1587.4,1587.3,6.26123229]
[1744584647225,0.05,1587.4,1587.3,6.81123229]
[1744584647402,1.3151651,1588.4,1588.1,5.03736]
[1744584647608,6.8210392,1588.4,1588.1,5.03736]
[1744584647807,5.03725,1588.2,1587.8,5.03837]
[1744584648121,0.8651,1588.1,1587.8,5.03837]
[1744584648536,5.90261,1588.1,1587.8,5.03837]
[1744584648702,5.90261,1588.1,1587.7,5.89038]
[1744584648703,5.90261,1588.1,1587.7,5.03868]
[1744584648906,5.90261,1588.1,1587.6,5.03888]
[1744584649236,12.731168,1588.1,1587.7,5.03853]
[1744584651133,7.693488,1588.1,1587.7,5.03853]
[1744584651335,5.0378,1588.0,1587.6,5.03904]
[1744584652436,5.0378,1588.0,1587.6,5.03888]
[1744584653146,5.0378,1588.0,1587.7,0.24590015]
[1744584653900,5.0378,1588.0,1587.7,5.28462015]
[1744584655644,0.8651,1588.1,1587.8,10.07659]
[1744584656136,5.03778,1588.0,1587.9,0.24585182]
[1744584656336,5.90283,1588.1,1587.9,0.24585182]
[1744584656337,0.8651,1588.1,1587.9,0.24585182]
[1744584656506,0.8651,1588.1,1587.8,10.07654]
[1744584656710,5.90271,1588.1,1587.9,0.24587283]
[1744584656904,7.693601,1588.1,1587.7,5.03863]
[1744584657108,7.693601,1588.1,1587.8,0.24588386]
[1744584657635,12.731251,1588.1,1587.8,0.24588386]
[1744584657838,5.03791,1588.0,1587.8,0.24588386]
[1744584658539,5.52131479,1588.0,1587.8,0.24588386]
[1744584658740,6.84280637,1588.0,1587.8,0.24588386]
[1744584659939,11.88087637,1588.0,1587.8,0.24588386]
[1744584660239,8.9032,1587.9,1587.8,0.24588386]
[1744584660404,5.03877,1587.7,1587.4,5.03953]
[1744584660841,11.99757,1587.8,1587.5,0.22413305]
[1744584661054,6.959,1587.8,1587.5,5.26333305]
[1744584661237,11.99744,1587.8,1587.5,5.26333305]
[1744584661403,13.25361257,1587.8,1587.5,5.26333305]
[1744584663748,13.25361257,1587.8,1587.5,0.22413305]
[1744584664922,6.959,1587.8,1587.5,0.22413305]
[1744584665121,6.959,1587.8,1587.6,5.95927]
[1744584665451,6.959,1587.8,1587.7,0.22411728]
[1744584665846,6.959,1587.8,1587.5,10.99907]
[1744584666048,6.959,1587.8,1587.7,0.2241257]
[1744584666568,6.959,1587.8,1587.5,5.95975]
[1744584666869,6.959,1587.8,1587.7,0.2241278]
[1744584667078,6.959,1587.8,1587.6,0.22413884]
[1744584667258,6.959,1587.8,1587.7,0.22410355]
[1744584667638,6.959,1587.8,1587.5,10.999]
[1744584667968,6.959,1587.8,1587.7,5.03873]
[1744584668211,6.959,1587.8,1587.6,0.22419658]
[1744584668470,6.959,1587.8,1587.7,0.22418134]
[1744584670960,6.959,1587.8,1587.7,5.26291134]
[1744584673173,7.8447,1588.2,1587.9,5.03793]
[1744584673334,7.8447,1588.2,1587.9,5.95843]
[1744584673535,3.0,1588.1,1588.0,0.22367835]
[1744584673846,3.0,1588.1,1587.9,5.95843]
[1744584674237,3.0,1588.1,1588.0,0.22368255]
[1744584674451,3.0,1588.1,1588.0,0.84819073]
[1744584674978,3.0,1588.1,1588.0,5.88597073]
[1744584676764,6.959,1588.2,1588.0,10.92360073]
[1744584676963,6.959,1588.2,1588.1,5.03746]
[1744584677150,13.0116892,1588.4,1588.1,5.03746]
[1744584677151,0.9194292,1588.4,1588.1,5.03746]
[1744584677363,3.9194292,1588.4,1588.2,5.89328]
[1744584677954,3.9194292,1588.4,1588.3,0.22092491]
[1744584678188,0.4500651,1588.4,1588.3,5.25775491]
[1744584678381,0.4500651,1588.4,1588.2,0.8563]
[1744584678681,0.4500651,1588.4,1588.3,6.10850675]
[1744584678864,0.4500651,1588.4,1588.3,7.22305843]
[1744584679367,0.4500651,1588.4,1588.3,7.28601041]
[1744584679569,0.4500651,1588.4,1588.3,7.22305843]
[1744584679879,0.4500651,1588.4,1588.3,7.28601037]
[1744584680272,0.4500651,1588.4,1588.3,7.22305843]